[Event "Ceske Budejovice Open-A 2019"]
[Site "Ceske Budejovice"]
[Date "2019.07.05"]
[Round "7.21"]
[White "Asatryan, Manvel"]
[Black "Baloun, Tomas"]
[Result "1-0"]
[ECO "B22"]
[WhiteElo "1799"]
[BlackElo "1887"]
[Annotator "NA"]
[PlyCount "57"]
[EventDate "2019.07.02"]
[EventCountry "CZE"]
[SourceTitle "playchess.com"]
[Source "ChessBase"]
[SourceQuality "1"]
[TimeControl "5400+30"]

1. e4 {[%emt 0:00:00]} c5 {[%emt 0:00:00]} 2. c3 {[%emt 0:00:00]} Nf6 {[%emt 0:00:35]} 3. e5 {[%emt 0:00:00]} Nd5 {[%emt 0:00:09]} 4. d4 {[%emt 0:00:00]} cxd4 {[%emt 0:00:36]} 5. cxd4 {[%emt 0:00:00]} d6 {[%emt 0:00:53]} 6. Nf3 {[%emt 0:01:31]} Nc6 {[%emt 0:00:45]} 7. Be2 {[%emt 0:01:29]} g6 {[%emt 0:01:04]} 8. Nc3 {[%emt 0:04:31]} Nxc3 {[%emt 0:03:46]} 9. bxc3 {[%emt 0:00:08]} dxe5 {[%emt 0:00:35]} 10. d5 {[%emt 0:00:54]} Nb8 {[%emt 0:09:38]} 11. Nxe5 {[%emt 0:06:02]} Qa5 {[%emt 0:06:26]} 12. Qb3 {[%emt 0:03:10]} Bg7 {[%emt 0:06:08]} 13. Bf4 {[%emt 0:14:10]} O-O {[%emt 0:21:14]} 14. O-O {[%emt 0:08:18]} Na6 {[%emt 0:06:14]} 15. Rac1 {[%emt 0:05:17]} Rd8 {[%emt 0:07:29]} 16. Rfd1 {[%emt 0:08:57]} Nc5 {[%emt 0:07:05]} 17. Qb5 {[%emt 0:06:11]} Qxb5 {[%emt 0:01:35]} 18. Bxb5 {[%emt 0:00:04]} a6 {[%emt 0:02:20]} 19. Be2 {[%emt 0:02:41]} g5 {[%emt 0:03:26]} 20. Be3 {[%emt 0:05:49]} Ne4 {[%emt 0:01:37]} 21. f4 {[%emt 0:01:21]} gxf4 {[%emt 0:03:26]} 22. Bxf4 {[%emt 0:00:02]} Bd7 {[%emt 0:00:36]} 23. c4 {[%emt 0:07:44]} Rac8 {[%emt 0:00:40]} 24. Nxd7 {[%emt 0:01:13]} Rxd7 {[%emt 0:00:07]} 25. Bg4 {[%emt 0:00:34]} e6 {[%emt 0:04:42]} 26. dxe6 {[%emt 0:02:20]} Rxd1+ {[%emt 0:01:39]} 27. Rxd1 {[%emt 0:00:05]} f6 {[%emt 0:06:04]} 28. e7 {[%emt 0:00:32]} Re8 {[%emt 0:00:30]} 29. Be6+ {[%emt 0:00:13]} 1-0

[Event "Ceske Budejovice Open-A 2019"]
[Site "Ceske Budejovice"]
[Date "2019.07.05"]
[Round "7.22"]
[White "Stodola, Zdenek"]
[Black "Pavlicek, Petr"]
[Result "1-0"]
[ECO "D87"]
[WhiteElo "1551"]
[BlackElo "1828"]
[Annotator "NA"]
[PlyCount "65"]
[EventDate "2019.07.02"]
[EventCountry "CZE"]
[SourceTitle "playchess.com"]
[Source "ChessBase"]
[SourceQuality "1"]
[TimeControl "5400+30"]

1. d4 {[%emt 0:00:00]} Nf6 {[%emt 0:00:00]} 2. c4 {[%emt 0:00:00]} g6 {[%emt 0:00:00]} 3. Nc3 {[%emt 0:00:00]} d5 {[%emt 0:00:00]} 4. cxd5 {[%emt 0:00:00]} Nxd5 {[%emt 0:00:01]} 5. e4 {[%emt 0:00:14]} Nxc3 {[%emt 0:00:05]} 6. bxc3 {[%emt 0:00:04]} Bg7 {[%emt 0:00:08]} 7. Bc4 {[%emt 0:00:13]} O-O {[%emt 0:00:16]} 8. Ne2 {[%emt 0:00:19]} c5 {[%emt 0:00:10]} 9. Be3 {[%emt 0:00:37]} Nc6 {[%emt 0:00:25]} 10. O-O {[%emt 0:00:29]} Qc7 {[%emt 0:02:11]} 11. Bd3 {[%emt 0:01:23]} Rd8 {[%emt 0:02:08]} 12. Rc1 {[%emt 0:01:22]} Qa5 {[%emt 0:04:39]} 13. Bc4 {[%emt 0:08:16]} b5 {[%emt 0:20:52]} 14. Bd5 {[%emt 0:02:57]} Bb7 {[%emt 0:00:22]} 15. Qc2 {[%emt 0:22:16]} c4 {[%emt 0:06:54]} 16. Bxc6 {[%emt 0:02:26]} Bxc6 {[%emt 0:00:08]} 17. d5 {[%emt 0:00:16]} Be8 {[%emt 0:06:12]} 18. Nd4 {[%emt 0:00:32]} Qc7 {[%emt 0:03:16]} 19. f4 {[%emt 0:04:59]} a6 {[%emt 0:04:19]} 20. Qf2 {[%emt 0:00:29]} Rac8 {[%emt 0:07:25]} 21. Nf3 {[%emt 0:07:16]} Qd6 {[%emt 0:02:31]} 22. Rfd1 {[%emt 0:03:29]} e5 {[%emt 0:02:43]} 23. fxe5 {[%emt 0:07:01]} Bxe5 {[%emt 0:00:25]} 24. Nxe5 {[%emt 0:00:18]} Qxe5 {[%emt 0:00:09]} 25. Bd4 {[%emt 0:01:00]} Qd6 {[%emt 0:02:01]} 26. Bf6 {[%emt 0:05:30]} Rd7 {[%emt 0:01:23]} 27. Rd4 {[%emt 0:05:29]} Qf8 {[%emt 0:02:37]} 28. Qh4 {[%emt 0:04:17]} Rb7 {[%emt 0:07:05]} 29. Rf1 {[%emt 0:05:43]} Bd7 {[%emt 0:04:41]} 30. e5 {[%emt 0:00:21]} b4 {[%emt 0:02:21]} 31. Rff4 {[%emt 0:00:44]} bxc3 {[%emt 0:00:46]} 32. Qxh7+ {[%emt 0:00:43]} Kxh7 {[%emt 0:00:12]} 33. Rh4+ {[%emt 0:00:09]} 1-0

[Event "Ceske Budejovice Open-A 2019"]
[Site "Ceske Budejovice"]
[Date "2019.07.05"]
[Round "7.23"]
[White "Hlavsa, Filip"]
[Black "Solovyova, Anastasia"]
[Result "0-1"]
[ECO "C00"]
[WhiteElo "1843"]
[BlackElo "1835"]
[Annotator "NA"]
[PlyCount "160"]
[EventDate "2019.07.02"]
[EventCountry "CZE"]
[SourceTitle "playchess.com"]
[Source "ChessBase"]
[SourceQuality "1"]
[TimeControl "5400+30"]

1. e4 {[%emt 0:00:00]} e6 {[%emt 0:00:00]} 2. Nf3 {[%emt 0:00:00]} d5 {[%emt 0:01:39]} 3. e5 {[%emt 0:00:01]} c5 {[%emt 0:00:29]} 4. b4 cxb4 {[%emt 0:17:50]} 5. a3 {[%emt 0:01:43]} Nc6 6. axb4 {[%emt 0:04:25]} Bxb4 {[%emt 0:01:26]} 7. c3 {[%emt 0:03:42]} Bf8 {[%emt 0:17:04]} 8. d4 {[%emt 0:03:07]} Nh6 {[%emt 0:03:08]} 9. Bd3 {[%emt 0:16:14]} Nf5 {[%emt 0:08:25]} 10. h4 {[%emt 0:16:50]} Be7 {[%emt 0:14:58]} 11. Na3 {[%emt 0:07:57]} Qa5 12. Bb2 Bxa3 {[%emt 0:04:02]} 13. Rxa3 {[%emt 0:01:16]} Qc7 {[%emt 0:08:26]} 14. Nd2 h5 15. g4 {[%emt 0:21:42]} hxg4 {[%emt 0:00:35]} 16. Qxg4 {[%emt 0:00:08]} g6 {[%emt 0:00:31]} 17. Ra1 {[%emt 0:10:24]} Rh5 18. Rc1 {[%emt 0:00:47]} Qe7 {[%emt 0:02:55]} 19. Nf3 Bd7 {[%emt 0:02:36]} 20. Rc2 {[%emt 0:01:15]} O-O-O {[%emt 0:01:02]} 21. Bc1 Rg8 {[%emt 0:03:26]} 22. Bg5 {[%emt 0:00:51]} Qa3 23. Bc1 Qa5 {[%emt 0:02:52]} 24. Bd2 {[%emt 0:05:24]} Qa1+ {[%emt 0:01:15]} 25. Rc1 Qa3 {[%emt 0:00:48]} 26. Bxf5 {[%emt 0:00:38]} exf5 27. Qg3 {[%emt 0:00:41]} Be6 {[%emt 0:01:09]} 28. Bg5 {[%emt 0:00:44]} Kb8 {[%emt 0:01:06]} 29. O-O {[%emt 0:00:57]} Rc8 {[%emt 0:01:06]} 30. Bd2 {[%emt 0:00:51]} Qe7 {[%emt 0:01:47]} 31. Ra1 Qc7 {[%emt 0:01:32]} 32. Rfb1 {[%emt 0:01:17]} Na5 {[%emt 0:00:48]} 33. Ne1 {[%emt 0:01:52]} Nc4 {[%emt 0:01:01]} 34. Bg5 {[%emt 0:00:12]} Qc6 {[%emt 0:01:56]} 35. Nd3 Ka8 {[%emt 0:02:05]} 36. Rb3 {[%emt 0:01:44]} b6 37. Nb4 {[%emt 0:01:47]} Qd7 {[%emt 0:00:39]} 38. Qd3 {[%emt 0:00:40]} Na5 {[%emt 0:00:36]} 39. Rba3 Rc4 {[%emt 0:01:02]} 40. Rb1 {[%emt 0:01:25]} Rh8 {[%emt 0:00:00]} 41. Qf3 {[%emt 0:00:00]} Rhc8 {[%emt 0:00:00]} 42. Bd2 {[%emt 0:00:00]} Nc6 {[%emt 0:00:00]} 43. Nc2 {[%emt 0:00:00]} Na5 44. Rba1 {[%emt 0:00:00]} R4c7 {[%emt 0:00:00]} 45. Ne3 {[%emt 0:00:00]} Qb5 46. Kg2 Nc4 {[%emt 0:00:00]} 47. Nxc4 {[%emt 0:00:00]} Qxc4 48. Ra4 {[%emt 0:00:57]} Qc6 {[%emt 0:00:00]} 49. Ra6 {[%emt 0:01:02]} Rh8 {[%emt 0:00:00]} 50. Rb1 {[%emt 0:00:56]} Kb7 {[%emt 0:01:33]} 51. Rba1 Kb8 52. Bc1 {[%emt 0:01:35]} Rxh4 {[%emt 0:01:32]} 53. Ba3 Qxc3 {[%emt 0:01:25]} 54. Qxc3 {[%emt 0:01:00]} Rxc3 {[%emt 0:00:05]} 55. Bd6+ {[%emt 0:00:13]} Kc8 {[%emt 0:00:57]} 56. Rxa7 {[%emt 0:00:10]} Rg4+ {[%emt 0:01:00]} 57. Kf1 {[%emt 0:00:10]} Kd8 {[%emt 0:00:36]} 58. Rb7 Rxd4 59. Rxb6 {[%emt 0:03:02]} Rdc4 {[%emt 0:02:19]} 60. Ra8+ {[%emt 0:00:47]} Rc8 {[%emt 0:00:08]} 61. Ra4 {[%emt 0:00:21]} R3c4 {[%emt 0:00:30]} 62. Ra7 d4 {[%emt 0:01:05]} 63. Ba3 {[%emt 0:01:15]} R4c6 {[%emt 0:00:37]} 64. Rb4 {[%emt 0:00:42]} Rc4 65. Rb6 {[%emt 0:00:35]} R8c6 {[%emt 0:00:58]} 66. Rb8+ {[%emt 0:00:39]} Bc8 67. Rb5 {[%emt 0:00:47]} Rc7 {[%emt 0:00:59]} 68. Rd5+ {[%emt 0:00:41]} Rd7 {[%emt 0:00:37]} 69. Raa5 {[%emt 0:00:15]} Rxd5 {[%emt 0:00:19]} 70. Rxd5+ {[%emt 0:00:03]} Kc7 {[%emt 0:00:13]} 71. Bc5 {[%emt 0:00:35]} Kc6 {[%emt 0:00:20]} 72. Rd8 {[%emt 0:00:21]} Kxc5 {[%emt 0:00:28]} 73. Rxc8+ {[%emt 0:00:06]} Kd5 {[%emt 0:00:06]} 74. Re8 {[%emt 0:00:48]} Rc6 {[%emt 0:01:35]} 75. Re7 {[%emt 0:01:09]} Re6 {[%emt 0:00:05]} 76. Rd7+ {[%emt 0:00:33]} Kxe5 77. Rxf7 {[%emt 0:00:26]} Rd6 {[%emt 0:00:54]} 78. Ke2 {[%emt 0:00:17]} Kf4 {[%emt 0:00:05]} 79. Re7 {[%emt 0:00:34]} d3+ {[%emt 0:00:46]} 80. Kd2 {[%emt 0:00:44]} Kf3 {[%emt 0:00:13]} 0-1

[Event "Ceske Budejovice Open-A 2019"]
[Site "Ceske Budejovice"]
[Date "2019.07.05"]
[Round "7.24"]
[White "Chval, Petr"]
[Black "Petkov, Andon"]
[Result "1-0"]
[ECO "A10"]
[WhiteElo "1885"]
[BlackElo "1761"]
[Annotator "NA"]
[PlyCount "79"]
[EventDate "2019.07.02"]
[EventCountry "CZE"]
[SourceTitle "playchess.com"]
[Source "ChessBase"]
[SourceQuality "1"]
[TimeControl "5400+30"]

1. c4 {[%emt 0:00:00]} g6 {[%emt 0:00:08]} 2. g3 {[%emt 0:00:25]} e5 {[%emt 0:00:10]} 3. Bg2 {[%emt 0:00:12]} Bg7 {[%emt 0:00:05]} 4. Nc3 {[%emt 0:00:29]} c6 {[%emt 0:00:06]} 5. e4 {[%emt 0:03:14]} d6 {[%emt 0:00:44]} 6. Nf3 {[%emt 0:01:36]} Nf6 {[%emt 0:03:11]} 7. O-O {[%emt 0:00:57]} O-O {[%emt 0:00:08]} 8. Rb1 {[%emt 0:04:04]} b6 {[%emt 0:00:37]} 9. b4 {[%emt 0:00:36]} Qe7 {[%emt 0:00:38]} 10. d3 {[%emt 0:01:52]} Nbd7 {[%emt 0:00:15]} 11. Bg5 {[%emt 0:02:01]} h6 {[%emt 0:00:38]} 12. Bd2 {[%emt 0:01:23]} Bb7 {[%emt 0:00:18]} 13. Ne1 {[%emt 0:04:53]} Nh7 {[%emt 0:04:00]} 14. Qc1 {[%emt 0:01:50]} h5 {[%emt 0:06:46]} 15. Bh6 {[%emt 0:08:12]} f6 {[%emt 0:00:39]} 16. Nc2 {[%emt 0:01:29]} Bxh6 {[%emt 0:01:07]} 17. Qxh6 {[%emt 0:00:13]} Qg7 {[%emt 0:00:05]} 18. Qd2 {[%emt 0:01:08]} Rad8 {[%emt 0:10:18]} 19. a4 {[%emt 0:02:33]} Ng5 {[%emt 0:05:02]} 20. f4 {[%emt 0:06:57]} Ne6 {[%emt 0:01:13]} 21. d4 {[%emt 0:00:21]} c5 {[%emt 0:01:56]} 22. d5 {[%emt 0:14:56]} Nc7 {[%emt 0:00:22]} 23. b5 {[%emt 0:04:22]} exf4 {[%emt 0:08:26]} 24. gxf4 {[%emt 0:00:19]} Qh6 {[%emt 0:01:00]} 25. Ne3 {[%emt 0:05:14]} Ne8 {[%emt 0:04:05]} 26. Bh3 {[%emt 0:04:11]} Ng7 {[%emt 0:11:36]} 27. Kh1 {[%emt 0:09:05]} Bc8 {[%emt 0:03:09]} 28. a5 {[%emt 0:06:46]} g5 {[%emt 0:00:57]} 29. Be6+ {[%emt 0:02:20]} Kh8 30. axb6 {[%emt 0:02:44]} axb6 {[%emt 0:01:08]} 31. Ra1 {[%emt 0:04:44]} gxf4 {[%emt 0:02:11]} 32. Nf5 {[%emt 0:02:50]} Nxf5 {[%emt 0:00:22]} 33. exf5 {[%emt 0:00:06]} Ne5 {[%emt 0:00:29]} 34. Qxf4 {[%emt 0:00:50]} Qh7 {[%emt 0:07:55]} 35. Rg1 {[%emt 0:00:26]} Bb7 {[%emt 0:01:32]} 36. Rg3 {[%emt 0:01:19]} Ra8 {[%emt 0:02:08]} 37. Rag1 {[%emt 0:00:28]} Ra3 {[%emt 0:07:39]} 38. Rg8+ {[%emt 0:02:41]} Rxg8 {[%emt 0:00:44]} 39. Rxg8+ {[%emt 0:00:02]} Qxg8 {[%emt 0:00:37]} 40. Qh6+ {[%emt 0:00:09]} 1-0

[Event "Ceske Budejovice Open-A 2019"]
[Site "Ceske Budejovice"]
[Date "2019.07.05"]
[Round "7.25"]
[White "Prazak, Daniel"]
[Black "Valasek, Jakub"]
[Result "1/2-1/2"]
[ECO "C77"]
[WhiteElo "1586"]
[BlackElo "1636"]
[Annotator "NA"]
[PlyCount "46"]
[EventDate "2019.07.02"]
[EventCountry "CZE"]
[SourceTitle "playchess.com"]
[Source "ChessBase"]
[SourceQuality "1"]
[TimeControl "5400+30"]

1. e4 {[%emt 0:00:00]} e5 {[%emt 0:00:00]} 2. Nf3 {[%emt 0:00:00]} Nc6 {[%emt 0:00:16]} 3. Bb5 {[%emt 0:00:13]} a6 {[%emt 0:00:32]} 4. Ba4 {[%emt 0:00:15]} Nf6 {[%emt 0:00:51]} 5. d3 {[%emt 0:01:39]} d6 {[%emt 0:03:10]} 6. h3 {[%emt 0:02:38]} Be7 {[%emt 0:02:22]} 7. O-O {[%emt 0:01:31]} b5 {[%emt 0:02:25]} 8. Bb3 {[%emt 0:01:52]} Na5 {[%emt 0:01:46]} 9. Nbd2 {[%emt 0:02:47]} Nxb3 {[%emt 0:02:29]} 10. axb3 {[%emt 0:00:29]} c5 {[%emt 0:02:43]} 11. Re1 {[%emt 0:02:37]} O-O {[%emt 0:02:30]} 12. Nf1 {[%emt 0:02:05]} h6 {[%emt 0:03:07]} 13. Ng3 {[%emt 0:05:05]} Nh7 {[%emt 0:02:55]} 14. Be3 {[%emt 0:03:19]} f5 {[%emt 0:04:07]} 15. exf5 {[%emt 0:03:02]} Bxf5 {[%emt 0:01:26]} 16. Nxf5 {[%emt 0:01:08]} Rxf5 {[%emt 0:00:58]} 17. Qd2 {[%emt 0:07:42]} Qf8 {[%emt 0:04:09]} 18. Qe2 {[%emt 0:04:04]} g5 {[%emt 0:04:57]} 19. Nh2 {[%emt 0:05:42]} Qf7 {[%emt 0:03:54]} 20. g4 {[%emt 0:05:07]} Rf6 {[%emt 0:01:12]} 21. Nf1 {[%emt 0:01:58]} Nf8 {[%emt 0:03:48]} 22. Ng3 {[%emt 0:02:17]} Ne6 {[%emt 0:03:38]} 23. Rf1 {[%emt 0:05:24]} Qf8 1/2-1/2

[Event "Ceske Budejovice Open-A 2019"]
[Site "Ceske Budejovice"]
[Date "2019.07.06"]
[Round "8.1"]
[White "Mirzoev, Azer"]
[Black "Nagy, Gabor"]
[Result "1/2-1/2"]
[ECO "A48"]
[WhiteElo "2474"]
[BlackElo "2474"]
[Annotator "ChessBase"]
[PlyCount "65"]
[EventDate "2019.07.02"]
[EventCountry "CZE"]
[SourceTitle "playchess.com"]
[Source "ChessBase"]
[SourceQuality "1"]
[TimeControl "5400+30"]

1. d4 {[%emt 0:01:07]} Nf6 {[%emt 0:00:00]} 2. Nf3 {[%emt 0:00:04]} g6 {[%emt 0:00:00]} 3. Nbd2 {[%emt 0:00:29]} d5 {[%emt 0:00:02]} 4. e3 {[%emt 0:00:11]} Bg7 {[%emt 0:00:06]} 5. b4 {[%emt 0:00:09]} a5 {[%emt 0:00:06]} 6. b5 {[%emt 0:00:10]} c5 {[%emt 0:00:07]} 7. bxc6 {[%emt 0:00:15]} Nxc6 {[%emt 0:00:08]} 8. c4 {[%emt 0:02:23]} O-O {[%emt 0:00:37]} 9. Bb2 {[%emt 0:00:24]} Bf5 {[%emt 0:00:50]} 10. a3 {[%emt 0:00:21]} dxc4 {[%emt 0:09:29]} 11. Bxc4 {[%emt 0:01:56]} e5 {[%emt 0:00:21]} 12. Nxe5 {[%emt 0:11:22]} Nxe5 {[%emt 0:00:23]} 13. dxe5 {[%emt 0:00:06]} Ng4 {[%emt 0:00:28]} 14. Nf3 {[%emt 0:08:24]} Qe7 {[%emt 0:00:47]} 15. O-O {[%emt 0:08:44]} Rad8 {[%emt 0:03:08]} 16. Qb3 {[%emt 0:02:04]} Be4 {[%emt 0:03:16]} 17. Be2 {[%emt 0:10:21]} Nxe5 {[%emt 0:03:44]} 18. Nxe5 {[%emt 0:00:15]} Bxe5 {[%emt 0:00:06]} 19. Bxe5 {[%emt 0:00:10]} Qxe5 {[%emt 0:00:06]} 20. Rfd1 {[%emt 0:00:23]} Bc6 {[%emt 0:03:04]} 21. h3 {[%emt 0:05:08]} Qg5 {[%emt 0:02:55]} 22. Bf1 {[%emt 0:00:31]} Rxd1 {[%emt 0:01:34]} 23. Rxd1 {[%emt 0:00:07]} Rd8 {[%emt 0:00:20]} 24. Rxd8+ {[%emt 0:00:59]} Qxd8 {[%emt 0:00:22]} 25. Qc3 {[%emt 0:00:09]} Qd5 {[%emt 0:00:23]} 26. f3 {[%emt 0:02:03]} a4 {[%emt 0:01:00]} 27. e4 {[%emt 0:02:19]} Qg5 {[%emt 0:01:18]} 28. Kf2 {[%emt 0:01:49]} h5 {[%emt 0:01:35]} 29. Qd4 {[%emt 0:05:53]} Qc1 {[%emt 0:01:35]} 30. Qd8+ {[%emt 0:02:18]} Kg7 {[%emt 0:01:03]} 31. Qd4+ {[%emt 0:00:07]} Kg8 {[%emt 0:00:05]} 32. Qd8+ {[%emt 0:00:05]} Kg7 {[%emt 0:00:04]} 33. Qd4+ {[%emt 0:00:06]} 1/2-1/2

[Event "Ceske Budejovice Open-A 2019"]
[Site "Ceske Budejovice"]
[Date "2019.07.06"]
[Round "8.2"]
[White "Voloshin, Leonid"]
[Black "Frolov, Artur"]
[Result "1/2-1/2"]
[ECO "A05"]
[WhiteElo "2376"]
[BlackElo "2453"]
[Annotator "ChessBase"]
[PlyCount "22"]
[EventDate "2019.07.02"]
[EventCountry "CZE"]
[SourceTitle "playchess.com"]
[Source "ChessBase"]
[SourceQuality "1"]
[TimeControl "5400+30"]

1. Nf3 {[%emt 0:00:00]} Nf6 {[%emt 0:00:00]} 2. g3 {[%emt 0:00:00]} d5 {[%emt 0:00:00]} 3. Bg2 {[%emt 0:00:00]} c5 {[%emt 0:00:00]} 4. O-O {[%emt 0:00:17]} Nc6 {[%emt 0:00:00]} 5. d4 {[%emt 0:00:16]} cxd4 {[%emt 0:01:08]} 6. Nxd4 {[%emt 0:00:06]} e6 {[%emt 0:00:21]} 7. Nxc6 {[%emt 0:02:40]} bxc6 {[%emt 0:00:05]} 8. c4 {[%emt 0:00:57]} Be7 {[%emt 0:00:07]} 9. Nd2 {[%emt 0:00:13]} O-O {[%emt 0:00:09]} 10. b3 {[%emt 0:00:16]} Qa5 {[%emt 0:00:24]} 11. Qc2 {[%emt 0:01:45]} e5 {[%emt 0:04:39]} 1/2-1/2

[Event "Ceske Budejovice Open-A 2019"]
[Site "Ceske Budejovice"]
[Date "2019.07.06"]
[Round "8.3"]
[White "Velicka, Petr"]
[Black "Barrish, Daniel"]
[Result "1/2-1/2"]
[ECO "D02"]
[WhiteElo "2428"]
[BlackElo "2237"]
[Annotator "RC"]
[PlyCount "143"]
[EventDate "2019.07.02"]
[EventCountry "CZE"]
[SourceTitle "playchess.com"]
[Source "ChessBase"]
[SourceQuality "1"]
[TimeControl "5400+30"]

1. Nf3 {[%emt 0:01:15]} d5 {[%emt 0:00:00]} 2. d4 {[%emt 0:00:08]} Nf6 {[%emt 0:00:00]} 3. c4 {[%emt 0:00:08]} e6 {[%emt 0:00:00]} 4. g3 {[%emt 0:00:05]} Bb4+ {[%emt 0:00:02]} 5. Bd2 {[%emt 0:00:07]} Be7 {[%emt 0:00:03]} 6. Bg2 {[%emt 0:00:13]} O-O {[%emt 0:00:14]} 7. O-O {[%emt 0:00:07]} c6 {[%emt 0:00:16]} 8. Qc2 {[%emt 0:00:16]} Nbd7 {[%emt 0:00:13]} 9. Bf4 {[%emt 0:01:21]} b6 {[%emt 0:03:46]} 10. cxd5 {[%emt 0:00:21]} cxd5 {[%emt 0:00:29]} 11. Rc1 {[%emt 0:00:08]} Bb7 {[%emt 0:03:07]} 12. Nc3 {[%emt 0:02:54]} a6 {[%emt 0:02:47]} 13. Nd1 {[%emt 0:19:06]} Ne8 {[%emt 0:07:14]} 14. Ne5 {[%emt 0:10:05]} Nb8 {[%emt 0:25:57]} 15. Bh3 {[%emt 0:17:32]} Kh8 {[%emt 0:03:37]} 16. a4 {[%emt 0:09:41]} Bd6 {[%emt 0:05:04]} 17. Qb3 {[%emt 0:09:20]} a5 {[%emt 0:11:02]} 18. Nc3 {[%emt 0:00:59]} Nc6 {[%emt 0:08:14]} 19. Nb5 {[%emt 0:02:32]} Nb4 {[%emt 0:03:27]} 20. Nxd6 {[%emt 0:01:44]} Nxd6 {[%emt 0:00:06]} 21. Bd2 {[%emt 0:02:15]} Na6 {[%emt 0:00:54]} 22. Be1 {[%emt 0:06:33]} f6 {[%emt 0:04:05]} 23. Nd3 {[%emt 0:02:02]} Re8 {[%emt 0:02:26]} 24. Nf4 {[%emt 0:02:10]} f5 {[%emt 0:00:15]} 25. Nd3 {[%emt 0:00:35]} Nc4 {[%emt 0:01:48]} 26. Bg2 {[%emt 0:01:57]} Nb8 {[%emt 0:04:16]} 27. Qa2 {[%emt 0:01:26]} Nc6 {[%emt 0:00:39]} 28. b3 {[%emt 0:00:08]} Nd6 {[%emt 0:00:11]} 29. Qb2 {[%emt 0:00:23]} Rc8 {[%emt 0:01:00]} 30. Rc2 {[%emt 0:02:18]} Re7 {[%emt 0:02:47]} 31. Rac1 {[%emt 0:01:17]} Nb8 {[%emt 0:04:54]} 32. Bd2 {[%emt 0:01:11]} Rxc2 {[%emt 0:02:27]} 33. Rxc2 {[%emt 0:00:34]} Ne4 {[%emt 0:02:46]} 34. Bf4 {[%emt 0:01:39]} Nc6 {[%emt 0:00:54]} 35. f3 {[%emt 0:01:11]} Nf6 {[%emt 0:00:24]} 36. Ne5 {[%emt 0:00:32]} Nb4 {[%emt 0:00:34]} 37. Rc1 {[%emt 0:00:56]} Kg8 {[%emt 0:00:38]} 38. Bf1 {[%emt 0:01:48]} Rc7 {[%emt 0:01:05]} 39. Rxc7 {[%emt 0:01:22]} Qxc7 {[%emt 0:00:04]} 40. Ng4 {[%emt 0:00:47]} Qc6 {[%emt 0:01:17]} 41. Nxf6+ {[%emt 0:00:00]} gxf6 {[%emt 0:00:00]} 42. Kf2 {[%emt 0:00:00]} Ba6 {[%emt 0:00:00]} 43. Bd2 {[%emt 0:00:00]} Kf7 {[%emt 0:00:00]} 44. Qc3 {[%emt 0:00:00]} Qxc3 {[%emt 0:00:00]} 45. Bxc3 {[%emt 0:00:00]} Nc2 {[%emt 0:00:00]} 46. Bg2 {[%emt 0:00:00]} e5 {[%emt 0:00:00]} 47. e3 {[%emt 0:00:00]} exd4 {[%emt 0:00:00]} 48. exd4 {[%emt 0:00:00]} Ke6 {[%emt 0:00:00]} 49. f4 {[%emt 0:00:00]} Bd3 {[%emt 0:00:00]} 50. Bf3 {[%emt 0:00:00]} Nb4 {[%emt 0:00:00]} 51. Bxb4 {[%emt 0:00:00]} axb4 {[%emt 0:00:00]} 52. Bd1 {[%emt 0:00:00]} Kf7 {[%emt 0:00:00]} 53. Ke3 {[%emt 0:00:00]} Be4 {[%emt 0:00:00]} 54. Bh5+ {[%emt 0:00:00]} Ke7 {[%emt 0:00:00]} 55. Kd2 {[%emt 0:00:00]} Kf8 {[%emt 0:00:00]} 56. Be2 {[%emt 0:00:00]} Kf7 {[%emt 0:00:25]} 57. Bb5 {[%emt 0:00:00]} h6 {[%emt 0:00:27]} 58. Bc6 {[%emt 0:00:00]} Ke6 {[%emt 0:00:16]} 59. Be8 {[%emt 0:00:00]} Ke7 {[%emt 0:01:01]} 60. Bh5 {[%emt 0:00:00]} Ke6 {[%emt 0:00:39]} 61. Bg6 {[%emt 0:00:00]} Bf3 {[%emt 0:02:10]} 62. h3 {[%emt 0:00:04]} Bg2 {[%emt 0:01:24]} 63. g4 {[%emt 0:00:48]} Bxh3 {[%emt 0:02:05]} 64. Bxf5+ {[%emt 0:00:08]} Ke7 {[%emt 0:00:32]} 65. Ke3 {[%emt 0:02:47]} h5 {[%emt 0:00:40]} 66. Kf3 {[%emt 0:00:08]} Kf7 {[%emt 0:01:05]} 67. Kg3 {[%emt 0:00:15]} Bxg4 {[%emt 0:00:22]} 68. Bxg4 {[%emt 0:00:08]} hxg4 {[%emt 0:00:04]} 69. Kxg4 {[%emt 0:00:08]} Kg6 {[%emt 0:00:07]} 70. f5+ {[%emt 0:00:47]} Kh6 {[%emt 0:00:06]} 71. Kh4 {[%emt 0:00:03]} Kg7 {[%emt 0:00:05]} 72. Kh5 1/2-1/2

[Event "Ceske Budejovice Open-A 2019"]
[Site "Ceske Budejovice"]
[Date "2019.07.06"]
[Round "8.4"]
[White "Sergeev, Vladimir"]
[Black "Vltavsky, Vladimir"]
[Result "1-0"]
[ECO "A00"]
[WhiteElo "2415"]
[BlackElo "2179"]
[Annotator "NA"]
[PlyCount "81"]
[EventDate "2019.07.02"]
[EventCountry "CZE"]
[SourceTitle "playchess.com"]
[Source "ChessBase"]
[SourceQuality "1"]
[TimeControl "5400+30"]

1. g3 {[%emt 0:00:34]} e5 {[%emt 0:01:51]} 2. c4 {[%emt 0:00:08]} g6 {[%emt 0:02:12]} 3. d4 {[%emt 0:01:29]} d6 {[%emt 0:00:48]} 4. Nc3 {[%emt 0:00:13]} Bg7 {[%emt 0:01:52]} 5. Nf3 {[%emt 0:00:14]} exd4 {[%emt 0:04:38]} 6. Nxd4 {[%emt 0:00:17]} Ne7 {[%emt 0:00:09]} 7. Bg2 {[%emt 0:00:20]} Nbc6 {[%emt 0:00:23]} 8. Be3 {[%emt 0:04:35]} O-O {[%emt 0:02:30]} 9. Nxc6 {[%emt 0:05:47]} Nxc6 {[%emt 0:01:45]} 10. Qd2 {[%emt 0:03:02]} Be6 {[%emt 0:04:34]} 11. b3 {[%emt 0:03:28]} Re8 {[%emt 0:05:01]} 12. Rc1 {[%emt 0:02:56]} Qd7 {[%emt 0:02:26]} 13. Nd5 {[%emt 0:00:57]} f6 {[%emt 0:06:24]} 14. O-O {[%emt 0:01:48]} Rad8 {[%emt 0:03:34]} 15. Rfd1 {[%emt 0:04:08]} g5 {[%emt 0:09:26]} 16. a3 {[%emt 0:24:45]} a5 {[%emt 0:06:33]} 17. Nc3 {[%emt 0:04:40]} b6 {[%emt 0:01:34]} 18. Nb5 {[%emt 0:03:31]} h6 {[%emt 0:03:29]} 19. Nc3 {[%emt 0:01:38]} Ne5 {[%emt 0:03:49]} 20. Bd4 {[%emt 0:00:33]} Nc6 {[%emt 0:01:19]} 21. Bxc6 {[%emt 0:13:11]} Qxc6 {[%emt 0:00:14]} 22. Nd5 {[%emt 0:00:26]} Kf7 {[%emt 0:11:08]} 23. Qb2 {[%emt 0:01:38]} Bxd5 {[%emt 0:00:53]} 24. cxd5 {[%emt 0:00:02]} Qb7 {[%emt 0:00:07]} 25. Rc3 {[%emt 0:02:23]} Rf8 {[%emt 0:04:58]} 26. Qc2 {[%emt 0:04:46]} Rd7 {[%emt 0:00:47]} 27. Qf5 {[%emt 0:04:18]} Re7 {[%emt 0:03:14]} 28. Rdc1 {[%emt 0:00:02]} Kg8 {[%emt 0:00:54]} 29. e3 {[%emt 0:02:23]} Qb8 {[%emt 0:04:21]} 30. Rc6 {[%emt 0:00:43]} Kf7 {[%emt 0:01:27]} 31. h4 {[%emt 0:01:19]} Kg8 {[%emt 0:01:00]} 32. Kg2 {[%emt 0:00:28]} b5 {[%emt 0:01:01]} 33. h5 {[%emt 0:00:13]} a4 {[%emt 0:00:26]} 34. bxa4 {[%emt 0:01:39]} bxa4 {[%emt 0:00:05]} 35. Rb1 {[%emt 0:00:07]} Qe8 {[%emt 0:02:00]} 36. g4 {[%emt 0:00:08]} Kh8 {[%emt 0:01:44]} 37. Rb7 {[%emt 0:00:14]} Rff7 {[%emt 0:01:09]} 38. Ba7 {[%emt 0:05:58]} Rd7 {[%emt 0:01:29]} 39. Bd4 {[%emt 0:01:05]} Rde7 {[%emt 0:01:39]} 40. Rb4 {[%emt 0:00:44]} Qa8 {[%emt 0:01:19]} 41. Kg3 {[%emt 0:00:34]} 1-0